[Event "Late-Titled-Tuesday-Blitz-January-16-2024"]
[Site "Chess.com"]
[Date "2024.01.16"]
[Round "1"]
[White "alertakobra"]
[Black "jk13"]
[Result "1-0"]
[WhiteElo "2390"]
[BlackElo "2681"]
[TimeControl "180+1"]
[EndTime "14:07:07 PST"]
[Termination "alertakobra won by checkmate"]

1. d4 {[%clk 0:03:00.9]} 1... Nf6 {[%clk 0:02:59.7]} 2. c4 {[%clk 0:03:00.8]}
2... e6 {[%clk 0:03:00.4]} 3. Nf3 {[%clk 0:03:00.7]} 3... Bb4+ {[%clk 0:03:01]}
4. Nbd2 {[%clk 0:02:59]} 4... O-O {[%clk 0:03:00.7]} 5. a3 {[%clk 0:02:58]} 5...
Be7 {[%clk 0:02:59.7]} 6. e4 {[%clk 0:02:57.8]} 6... d5 {[%clk 0:02:59.6]} 7. e5
{[%clk 0:02:58]} 7... Nfd7 {[%clk 0:03:00.1]} 8. Bd3 {[%clk 0:02:57.9]} 8... c5
{[%clk 0:03:00.3]} 9. Qc2 {[%clk 0:02:58]} 9... h6 {[%clk 0:02:59.1]} 10. O-O
{[%clk 0:02:50.9]} 10... Nc6 {[%clk 0:02:59.5]} 11. Nb3 {[%clk 0:02:49.6]} 11...
cxd4 {[%clk 0:02:53.5]} 12. Re1 {[%clk 0:02:49.5]} 12... a5 {[%clk 0:02:51.2]}
13. cxd5 {[%clk 0:02:48.1]} 13... exd5 {[%clk 0:02:52.1]} 14. Nbxd4 {[%clk
0:02:47.9]} 14... Nxd4 {[%clk 0:02:53]} 15. Nxd4 {[%clk 0:02:47.8]} 15... Nc5
{[%clk 0:02:53.9]} 16. Bh7+ {[%clk 0:02:42.3]} 16... Kh8 {[%clk 0:02:53.8]} 17.
Bf5 {[%clk 0:02:42.3]} 17... a4 {[%clk 0:02:30.4]} 18. Bf4 {[%clk 0:02:39.9]}
18... Qb6 {[%clk 0:02:28.3]} 19. Rad1 {[%clk 0:02:32.5]} 19... Be6 {[%clk
0:02:08.9]} 20. Qd2 {[%clk 0:02:03]} 20... Nb3 {[%clk 0:01:59.8]} 21. Nxb3
{[%clk 0:02:02.4]} 21... Bxf5 {[%clk 0:02:00.2]} 22. Nd4 {[%clk 0:02:02.6]}
22... Bh7 {[%clk 0:01:57.1]} 23. e6 {[%clk 0:01:59.2]} 23... Bc5 {[%clk
0:01:44]} 24. Be5 {[%clk 0:01:27.6]} 24... f6 {[%clk 0:01:34.9]} 25. Bg3 {[%clk
0:01:26]} 25... Rfe8 {[%clk 0:01:28.5]} 26. h3 {[%clk 0:00:48.4]} 26... Rad8
{[%clk 0:01:28.2]} 27. Qc3 {[%clk 0:00:29.3]} 27... Bg8 {[%clk 0:01:14]} 28. Kh2
{[%clk 0:00:26.7]} 28... Rc8 {[%clk 0:01:06.1]} 29. Qd2 {[%clk 0:00:24]} 29...
Qa6 {[%clk 0:00:47.6]} 30. Nf5 {[%clk 0:00:21]} 30... Rxe6 {[%clk 0:00:40.9]}
31. Nxh6 {[%clk 0:00:20.4]} 31... gxh6 {[%clk 0:00:33.1]} 32. Qxh6+ {[%clk
0:00:20]} 32... Bh7 {[%clk 0:00:33.5]} 33. Bh4 {[%clk 0:00:18.2]} 33... Be7
{[%clk 0:00:27.3]} 34. Rc1 {[%clk 0:00:09]} 34... Rxc1 {[%clk 0:00:22.5]} 35.
Rxc1 {[%clk 0:00:08.9]} 35... Kg8 {[%clk 0:00:22.2]} 36. Rc8+ {[%clk 0:00:08.5]}
36... Bd8 {[%clk 0:00:16.9]} 37. Rxd8+ {[%clk 0:00:08.1]} 37... Kf7 {[%clk
0:00:17.4]} 38. Qxh7# {[%clk 0:00:08.2]} 1-0

[Event "Late-Titled-Tuesday-Blitz-January-16-2024"]
[Site "Chess.com"]
[Date "2024.01.16"]
[Round "1"]
[White "SCIM"]
[Black "SmirnovTimofey2000"]
[Result "1-0"]
[WhiteElo "2540"]
[BlackElo "1986"]
[TimeControl "180+1"]
[EndTime "14:07:10 PST"]
[Termination "SCIM won on time"]

1. b3 {[%clk 0:02:58]} 1... d5 {[%clk 0:02:56.9]} 2. Bb2 {[%clk 0:02:58.4]} 2...
Nf6 {[%clk 0:02:55.6]} 3. e3 {[%clk 0:02:58.5]} 3... e6 {[%clk 0:02:55.8]} 4.
Nf3 {[%clk 0:02:58.4]} 4... Bd6 {[%clk 0:02:51.6]} 5. c4 {[%clk 0:02:57.5]} 5...
c6 {[%clk 0:02:51.6]} 6. Nc3 {[%clk 0:02:56.8]} 6... Nbd7 {[%clk 0:02:48.5]} 7.
Qc2 {[%clk 0:02:55.9]} 7... O-O {[%clk 0:02:43.4]} 8. Be2 {[%clk 0:02:54.2]}
8... a5 {[%clk 0:02:36.8]} 9. g4 {[%clk 0:02:52]} 9... Qc7 {[%clk 0:02:17.1]}
10. g5 {[%clk 0:02:50.9]} 10... Ne8 {[%clk 0:02:17]} 11. h4 {[%clk 0:02:46.9]}
11... Ne5 {[%clk 0:02:04]} 12. Nxe5 {[%clk 0:02:33.5]} 12... Bxe5 {[%clk
0:02:04.1]} 13. f4 {[%clk 0:02:34]} 13... Bd6 {[%clk 0:01:53.8]} 14. h5 {[%clk
0:02:32.4]} 14... b5 {[%clk 0:01:43.9]} 15. Bd3 {[%clk 0:01:48.8]} 15... f5
{[%clk 0:01:30]} 16. gxf6 {[%clk 0:01:31.2]} 16... Nxf6 {[%clk 0:01:29.9]} 17.
h6 {[%clk 0:01:29]} 17... g6 {[%clk 0:01:24.5]} 18. Bxg6 {[%clk 0:01:15.2]}
18... hxg6 {[%clk 0:01:24.6]} 19. Qxg6+ {[%clk 0:01:15.4]} 19... Kh8 {[%clk
0:01:18.5]} 20. Rg1 {[%clk 0:01:12.2]} 20... Qh7 {[%clk 0:01:09]} 21. Qg7+
{[%clk 0:01:09.2]} 21... Qxg7 {[%clk 0:01:08.9]} 22. hxg7+ {[%clk 0:01:10.1]}
22... Kg8 {[%clk 0:01:05.6]} 23. gxf8=Q+ {[%clk 0:01:11]} 23... Kxf8 {[%clk
0:01:06.3]} 24. cxb5 {[%clk 0:01:06.4]} 24... cxb5 {[%clk 0:01:02.3]} 25. Nxb5
{[%clk 0:01:03.7]} 25... Be7 {[%clk 0:01:01.7]} 26. Rc1 {[%clk 0:01:00.5]} 26...
Ba6 {[%clk 0:00:55.5]} 27. Nc7 {[%clk 0:00:59.5]} 27... Ra7 {[%clk 0:00:50.3]}
28. Nxe6+ {[%clk 0:00:54.7]} 28... Kf7 {[%clk 0:00:49.9]} 29. Ng5+ {[%clk
0:00:38.2]} 29... Ke8 {[%clk 0:00:44.8]} 30. Bd4 {[%clk 0:00:37.2]} 30... Rb7
{[%clk 0:00:40.4]} 31. Ne6 {[%clk 0:00:34.5]} 31... Ne4 {[%clk 0:00:31.6]} 32.
Nc7+ {[%clk 0:00:30.7]} 32... Rxc7 {[%clk 0:00:21.8]} 33. Rxc7 {[%clk
0:00:31.6]} 33... Bb4 {[%clk 0:00:20.4]} 34. Rg8+ {[%clk 0:00:28.6]} 34... Bf8
{[%clk 0:00:16.2]} 35. Ra7 {[%clk 0:00:28.1]} 35... Bd3 {[%clk 0:00:07.9]} 36.
Bg7 {[%clk 0:00:25.9]} 1-0

[Event "Late-Titled-Tuesday-Blitz-January-16-2024"]
[Site "Chess.com"]
[Date "2024.01.16"]
[Round "1"]
[White "gxbg2000"]
[Black "DishonorOnYourCow"]
[Result "0-1"]
[WhiteElo "2083"]
[BlackElo "2554"]
[TimeControl "180+1"]
[EndTime "14:07:12 PST"]
[Termination "DishonorOnYourCow won by resignation"]

1. e4 {[%clk 0:02:59]} 1... c5 {[%clk 0:02:59.9]} 2. Nf3 {[%clk 0:02:58]} 2...
d6 {[%clk 0:03:00.1]} 3. d4 {[%clk 0:02:58.6]} 3... cxd4 {[%clk 0:02:59.5]} 4.
Nxd4 {[%clk 0:02:59.5]} 4... Nf6 {[%clk 0:02:59.9]} 5. Nc3 {[%clk 0:02:58.8]}
5... a6 {[%clk 0:03:00.4]} 6. Be3 {[%clk 0:02:58.6]} 6... Ng4 {[%clk 0:03:00.3]}
7. Qf3 {[%clk 0:02:57]} 7... Nxe3 {[%clk 0:02:58.4]} 8. Qxe3 {[%clk 0:02:56.9]}
8... e6 {[%clk 0:02:56.3]} 9. Be2 {[%clk 0:02:55.8]} 9... Be7 {[%clk 0:02:56.4]}
10. O-O {[%clk 0:02:55.7]} 10... O-O {[%clk 0:02:56.1]} 11. Rad1 {[%clk
0:02:49.7]} 11... Qc7 {[%clk 0:02:55.5]} 12. Bd3 {[%clk 0:02:48.2]} 12... Nc6
{[%clk 0:02:54.9]} 13. Nxc6 {[%clk 0:02:47.9]} 13... bxc6 {[%clk 0:02:51.1]} 14.
b3 {[%clk 0:02:47.5]} 14... Bf6 {[%clk 0:02:42.7]} 15. Ne2 {[%clk 0:02:46]}
15... c5 {[%clk 0:02:40.1]} 16. Bc4 {[%clk 0:02:39.6]} 16... Bb7 {[%clk
0:02:38.7]} 17. Ng3 {[%clk 0:02:18.1]} 17... Rfd8 {[%clk 0:02:36.4]} 18. Nh5
{[%clk 0:02:02.4]} 18... Be7 {[%clk 0:02:13.9]} 19. Rfe1 {[%clk 0:01:48.2]}
19... Bf8 {[%clk 0:02:12.8]} 20. f4 {[%clk 0:01:40.3]} 20... d5 {[%clk
0:02:12.4]} 21. exd5 {[%clk 0:01:37]} 21... exd5 {[%clk 0:02:13.3]} 22. Bf1
{[%clk 0:01:33.7]} 22... c4 {[%clk 0:01:58.7]} 23. Qe5 {[%clk 0:01:31.4]} 23...
Qb6+ {[%clk 0:01:48.1]} 24. Kh1 {[%clk 0:01:20.4]} 24... Qg6 {[%clk 0:01:44.7]}
25. Rd2 {[%clk 0:00:59.5]} 25... Re8 {[%clk 0:01:33.4]} 26. Qxe8 {[%clk
0:00:47.5]} 26... Rxe8 {[%clk 0:01:34.3]} 27. Rxe8 {[%clk 0:00:47.4]} 27... Qxh5
{[%clk 0:01:34.2]} 28. bxc4 {[%clk 0:00:39]} 28... dxc4 {[%clk 0:01:33]} 29.
Bxc4 {[%clk 0:00:36.8]} 29... Qg4 {[%clk 0:01:03.4]} 30. h3 {[%clk 0:00:20]}
30... Qxh3+ {[%clk 0:00:49.6]} 31. Kg1 {[%clk 0:00:19.8]} 31... Qg3 {[%clk
0:00:41.3]} 32. Bf1 {[%clk 0:00:17.7]} 32... Bc6 {[%clk 0:00:36.8]} 33. Rc8
{[%clk 0:00:16.4]} 33... Qe3+ {[%clk 0:00:30.2]} 34. Rf2 {[%clk 0:00:14.8]}
34... Bd7 {[%clk 0:00:28.4]} 35. Rd8 {[%clk 0:00:13.8]} 35... Be6 {[%clk
0:00:28.2]} 36. Bd3 {[%clk 0:00:12.4]} 36... g6 {[%clk 0:00:28.1]} 37. f5 {[%clk
0:00:10.3]} 37... Bxf5 {[%clk 0:00:27.2]} 38. Bxf5 {[%clk 0:00:10.4]} 38... gxf5
{[%clk 0:00:27.8]} 39. Kf1 {[%clk 0:00:10.8]} 39... Kg7 {[%clk 0:00:27.9]} 40.
Re2 {[%clk 0:00:11]} 40... Qc1+ {[%clk 0:00:25.9]} 41. Kf2 {[%clk 0:00:11]}
41... Bc5+ {[%clk 0:00:26.3]} 42. Kf3 {[%clk 0:00:09.7]} 42... Qf1+ {[%clk
0:00:26.5]} 43. Kg3 {[%clk 0:00:09.5]} 43... Qxe2 {[%clk 0:00:26.7]} 0-1

[Event "Late-Titled-Tuesday-Blitz-January-16-2024"]
[Site "Chess.com"]
[Date "2024.01.16"]
[Round "1"]
[White "koncheto"]
[Black "seasidesunset"]
[Result "1-0"]
[WhiteElo "2585"]
[BlackElo "2233"]
[TimeControl "180+1"]
[EndTime "14:07:13 PST"]
[Termination "koncheto won by resignation"]

1. e4 {[%clk 0:02:59.1]} 1... e6 {[%clk 0:03:00.5]} 2. d4 {[%clk 0:02:58.4]}
2... d5 {[%clk 0:03:01.4]} 3. Nd2 {[%clk 0:02:58.9]} 3... c5 {[%clk 0:03:00.4]}
4. exd5 {[%clk 0:02:58.6]} 4... Qxd5 {[%clk 0:03:01.3]} 5. Ngf3 {[%clk
0:02:58.6]} 5... Nf6 {[%clk 0:03:01.5]} 6. Bc4 {[%clk 0:02:48.8]} 6... Qd8
{[%clk 0:02:59.3]} 7. O-O {[%clk 0:02:49.4]} 7... cxd4 {[%clk 0:02:59.3]} 8. Nb3
{[%clk 0:02:49.2]} 8... Nc6 {[%clk 0:02:59.9]} 9. Nbxd4 {[%clk 0:02:48.1]} 9...
Nxd4 {[%clk 0:02:58.2]} 10. Nxd4 {[%clk 0:02:49]} 10... Bd6 {[%clk 0:02:58.2]}
11. h3 {[%clk 0:02:40.3]} 11... O-O {[%clk 0:02:30.8]} 12. c3 {[%clk 0:02:36.5]}
12... a6 {[%clk 0:02:30.3]} 13. Qf3 {[%clk 0:02:35.4]} 13... Rb8 {[%clk
0:02:29.6]} 14. Bg5 {[%clk 0:02:20]} 14... Qc7 {[%clk 0:02:20.3]} 15. Bd3 {[%clk
0:02:08]} 15... Be7 {[%clk 0:01:59.7]} 16. Rad1 {[%clk 0:02:02.9]} 16... b5
{[%clk 0:01:47.7]} 17. Rfe1 {[%clk 0:01:49.4]} 17... Bb7 {[%clk 0:01:46.1]} 18.
Qe2 {[%clk 0:01:41]} 18... h6 {[%clk 0:01:29.6]} 19. Bh4 {[%clk 0:01:40.1]}
19... Nd5 {[%clk 0:01:19.8]} 20. Bg3 {[%clk 0:01:30.4]} 20... Bd6 {[%clk
0:01:19.3]} 21. Nxe6 {[%clk 0:01:14.7]} 21... fxe6 {[%clk 0:01:14.5]} 22. Qxe6+
{[%clk 0:01:13.3]} 22... Qf7 {[%clk 0:01:12.4]} 23. Bxd6 {[%clk 0:01:13.8]}
23... Qxe6 {[%clk 0:01:11]} 24. Rxe6 {[%clk 0:01:13.9]} 24... Nf4 {[%clk
0:01:11.9]} 25. Re5 {[%clk 0:00:45.3]} 25... Rbd8 {[%clk 0:01:02.8]} 26. Bxf8
{[%clk 0:00:37.6]} 26... Nxd3 {[%clk 0:00:29.1]} 27. Re3 {[%clk 0:00:35.9]}
27... Rxf8 {[%clk 0:00:26.3]} 28. Rdxd3 {[%clk 0:00:34.7]} 28... Rf6 {[%clk
0:00:25.3]} 29. Rd7 {[%clk 0:00:27.7]} 29... Bc6 {[%clk 0:00:23.1]} 30. Ra7
{[%clk 0:00:28.6]} 30... Rg6 {[%clk 0:00:21.7]} 31. Rg3 {[%clk 0:00:26.9]} 31...
Rd6 {[%clk 0:00:21.7]} 32. Rgxg7+ {[%clk 0:00:25.7]} 32... Kh8 {[%clk
0:00:21.8]} 33. Rgc7 {[%clk 0:00:23]} 33... Rg6 {[%clk 0:00:15]} 34. Rc8+ {[%clk
0:00:21.4]} 34... Rg8 {[%clk 0:00:13.5]} 35. Rxc6 {[%clk 0:00:21.3]} 35... Rg6
{[%clk 0:00:01.9]} 36. Rxg6 {[%clk 0:00:19.8]} 1-0

[Event "Late-Titled-Tuesday-Blitz-January-16-2024"]
[Site "Chess.com"]
[Date "2024.01.16"]
[Round "1"]
[White "chegueps"]
[Black "sansanathalia"]
[Result "1-0"]
[WhiteElo "2693"]
[BlackElo "2368"]
[TimeControl "180+1"]
[EndTime "14:07:14 PST"]
[Termination "chegueps won by resignation"]

1. d4 {[%clk 0:02:58.7]} 1... Nf6 {[%clk 0:02:59.4]} 2. c4 {[%clk 0:02:58.4]}
2... e6 {[%clk 0:02:57.6]} 3. Nc3 {[%clk 0:02:57.3]} 3... d5 {[%clk 0:02:56.7]}
4. cxd5 {[%clk 0:02:56.3]} 4... Nxd5 {[%clk 0:02:54.8]} 5. Nf3 {[%clk
0:02:52.1]} 5... Nxc3 {[%clk 0:02:52]} 6. bxc3 {[%clk 0:02:53]} 6... c5 {[%clk
0:02:50.4]} 7. e3 {[%clk 0:02:44.5]} 7... cxd4 {[%clk 0:02:48.5]} 8. cxd4 {[%clk
0:02:44.2]} 8... Bb4+ {[%clk 0:02:46]} 9. Bd2 {[%clk 0:02:44.5]} 9... Bxd2+
{[%clk 0:02:42.9]} 10. Qxd2 {[%clk 0:02:45.4]} 10... O-O {[%clk 0:02:42.5]} 11.
Bd3 {[%clk 0:02:45.3]} 11... Nd7 {[%clk 0:02:39.4]} 12. O-O {[%clk 0:02:44.6]}
12... b6 {[%clk 0:02:38.5]} 13. Be4 {[%clk 0:02:36.7]} 13... Rb8 {[%clk
0:02:37.9]} 14. Rac1 {[%clk 0:02:34.6]} 14... Nf6 {[%clk 0:02:34.3]} 15. Bb1
{[%clk 0:02:32.1]} 15... Bb7 {[%clk 0:02:29.6]} 16. Ne5 {[%clk 0:02:19.1]} 16...
Qd5 {[%clk 0:02:22.1]} 17. f3 {[%clk 0:02:12.8]} 17... Rfd8 {[%clk 0:02:18]} 18.
Rfd1 {[%clk 0:01:57.7]} 18... g6 {[%clk 0:02:10.6]} 19. Rc7 {[%clk 0:01:53.9]}
19... Rbc8 {[%clk 0:01:15.8]} 20. Rxc8 {[%clk 0:01:33.5]} 20... Rxc8 {[%clk
0:01:14.4]} 21. Qb4 {[%clk 0:01:33.6]} 21... Rc7 {[%clk 0:01:06.9]} 22. e4
{[%clk 0:01:24.2]} 22... Qd8 {[%clk 0:01:01.7]} 23. Qd2 {[%clk 0:01:16.5]} 23...
Kg7 {[%clk 0:00:48.5]} 24. Qf4 {[%clk 0:01:04.2]} 24... h6 {[%clk 0:00:40.5]}
25. h4 {[%clk 0:00:37.9]} 25... Nh7 {[%clk 0:00:28.1]} 26. d5 {[%clk 0:00:28]}
26... exd5 {[%clk 0:00:25]} 27. exd5 {[%clk 0:00:28.9]} 27... Bc8 {[%clk
0:00:06.7]} 28. d6 {[%clk 0:00:27.9]} 28... Rb7 {[%clk 0:00:06.7]} 29. d7 {[%clk
0:00:26.6]} 29... g5 {[%clk 0:00:04.3]} 30. Qf5 {[%clk 0:00:24.7]} 30... Nf6
{[%clk 0:00:02.4]} 31. hxg5 {[%clk 0:00:22.4]} 31... hxg5 {[%clk 0:00:02.4]} 32.
Qxg5+ {[%clk 0:00:22.5]} 32... Kf8 {[%clk 0:00:03]} 33. Qxf6 {[%clk 0:00:18.5]}
33... Qxf6 {[%clk 0:00:02.5]} 34. dxc8=Q+ {[%clk 0:00:18.6]} 34... Kg7 {[%clk
0:00:03.1]} 35. Qg4+ {[%clk 0:00:13.4]} 35... Kh8 {[%clk 0:00:02]} 1-0

[Event "Late-Titled-Tuesday-Blitz-January-16-2024"]
[Site "Chess.com"]
[Date "2024.01.16"]
[Round "1"]
[White "JM2005GM"]
[Black "DenizG123"]
[Result "1-0"]
[WhiteElo "2555"]
[BlackElo "2087"]
[TimeControl "180+1"]
[EndTime "14:07:14 PST"]
[Termination "JM2005GM won by resignation"]

1. e4 {[%clk 0:02:50]} 1... c5 {[%clk 0:02:59.7]} 2. Nf3 {[%clk 0:02:49.5]} 2...
Nc6 {[%clk 0:02:59.7]} 3. d4 {[%clk 0:02:49.6]} 3... cxd4 {[%clk 0:03:00.6]} 4.
Nxd4 {[%clk 0:02:50.1]} 4... Nf6 {[%clk 0:03:01.4]} 5. Nc3 {[%clk 0:02:50.2]}
5... e5 {[%clk 0:03:01.5]} 6. Ndb5 {[%clk 0:02:50.6]} 6... d6 {[%clk 0:02:58.9]}
7. Bg5 {[%clk 0:02:48]} 7... a6 {[%clk 0:02:58.5]} 8. Na3 {[%clk 0:02:48.1]}
8... b5 {[%clk 0:02:58.8]} 9. Nd5 {[%clk 0:02:48.5]} 9... Be7 {[%clk 0:02:58.8]}
10. Bxf6 {[%clk 0:02:49.2]} 10... Bxf6 {[%clk 0:02:58.2]} 11. c4 {[%clk
0:02:49.9]} 11... b4 {[%clk 0:02:57.3]} 12. Nc2 {[%clk 0:02:50.4]} 12... Rb8
{[%clk 0:02:47.3]} 13. Qd3 {[%clk 0:02:46.9]} 13... O-O {[%clk 0:02:35.3]} 14.
g3 {[%clk 0:02:46.9]} 14... g6 {[%clk 0:02:12.2]} 15. h4 {[%clk 0:02:45.5]}
15... Bg7 {[%clk 0:02:12.5]} 16. O-O-O {[%clk 0:02:17.7]} 16... b3 {[%clk
0:02:00]} 17. axb3 {[%clk 0:02:18.6]} 17... f5 {[%clk 0:01:36.6]} 18. Bg2 {[%clk
0:02:03.3]} 18... fxe4 {[%clk 0:01:21]} 19. Bxe4 {[%clk 0:02:04.2]} 19... Rxf2
{[%clk 0:01:20.3]} 20. h5 {[%clk 0:01:56.8]} 20... Qg5+ {[%clk 0:01:04.8]} 21.
Kb1 {[%clk 0:01:54.6]} 21... Bg4 {[%clk 0:00:57.4]} 22. Rde1 {[%clk 0:01:11.2]}
22... Nd4 {[%clk 0:00:26.9]} 23. Nxd4 {[%clk 0:01:07.2]} 23... exd4 {[%clk
0:00:27.8]} 24. hxg6 {[%clk 0:00:44.1]} 24... Rd2 {[%clk 0:00:27.4]} 25. Qf1
{[%clk 0:00:44.7]} 25... hxg6 {[%clk 0:00:20.4]} 26. Bc2 {[%clk 0:00:27.1]}
26... d3 {[%clk 0:00:18.8]} 27. Ne7+ {[%clk 0:00:15.5]} 27... Qxe7 {[%clk
0:00:14.6]} 28. Rxe7 {[%clk 0:00:16.4]} 28... dxc2+ {[%clk 0:00:11.8]} 29. Ka2
{[%clk 0:00:17]} 29... c1=Q {[%clk 0:00:07.8]} 30. Rxg7+ {[%clk 0:00:13.8]}
30... Kxg7 {[%clk 0:00:07.6]} 31. Qxc1 {[%clk 0:00:14.7]} 31... Re2 {[%clk
0:00:04.6]} 32. Qc3+ {[%clk 0:00:15.2]} 32... Re5 {[%clk 0:00:04.2]} 33. Qd4
{[%clk 0:00:14.1]} 33... Rf8 {[%clk 0:00:01.2]} 34. Qxg4 {[%clk 0:00:13.3]}
34... Ra5+ {[%clk 0:00:02]} 35. Kb1 {[%clk 0:00:13.7]} 1-0

[Event "Late-Titled-Tuesday-Blitz-January-16-2024"]
[Site "Chess.com"]
[Date "2024.01.16"]
[Round "1"]
[White "DeArron_Fox"]
[Black "GoltsevDmitry2000"]
[Result "1-0"]
[WhiteElo "2430"]
[BlackElo "2729"]
[TimeControl "180+1"]
[EndTime "14:07:17 PST"]
[Termination "DeArron_Fox won by checkmate"]

1. d4 {[%clk 0:02:59.9]} 1... e6 {[%clk 0:02:59.4]} 2. c4 {[%clk 0:02:57.5]}
2... Nf6 {[%clk 0:02:58.7]} 3. Nf3 {[%clk 0:02:56.9]} 3... Bb4+ {[%clk 0:02:57]}
4. Bd2 {[%clk 0:02:55.9]} 4... Be7 {[%clk 0:02:57.6]} 5. g3 {[%clk 0:02:52.9]}
5... b6 {[%clk 0:02:58.2]} 6. Bg2 {[%clk 0:02:47.6]} 6... Ba6 {[%clk 0:02:58.9]}
7. b3 {[%clk 0:02:45]} 7... O-O {[%clk 0:02:58.5]} 8. O-O {[%clk 0:02:42.9]}
8... d5 {[%clk 0:02:58.5]} 9. Bc3 {[%clk 0:02:39.3]} 9... Ne4 {[%clk 0:02:57.5]}
10. Bb2 {[%clk 0:02:33.6]} 10... c5 {[%clk 0:02:54.7]} 11. Nbd2 {[%clk
0:02:16.3]} 11... Nc6 {[%clk 0:02:51.5]} 12. Nxe4 {[%clk 0:02:00.5]} 12... dxe4
{[%clk 0:02:52.4]} 13. Ne5 {[%clk 0:01:59.7]} 13... Nxd4 {[%clk 0:02:29.7]} 14.
Bxe4 {[%clk 0:01:58.9]} 14... Rc8 {[%clk 0:02:28.8]} 15. e3 {[%clk 0:01:46.5]}
15... Nf5 {[%clk 0:02:24.3]} 16. Nc6 {[%clk 0:01:32.8]} 16... Qe8 {[%clk
0:02:06.5]} 17. Nxa7 {[%clk 0:01:10.4]} 17... Rc7 {[%clk 0:02:00.7]} 18. Nb5
{[%clk 0:01:10.2]} 18... Bxb5 {[%clk 0:02:00.2]} 19. cxb5 {[%clk 0:01:11.1]}
19... Qxb5 {[%clk 0:02:00.2]} 20. Qc2 {[%clk 0:00:50.3]} 20... c4 {[%clk
0:01:59.9]} 21. Bd3 {[%clk 0:00:26.3]} 21... Qd7 {[%clk 0:01:17.7]} 22. bxc4
{[%clk 0:00:20.3]} 22... Nd6 {[%clk 0:01:12.7]} 23. Bxh7+ {[%clk 0:00:19.1]}
23... Kh8 {[%clk 0:01:12.7]} 24. Bd3 {[%clk 0:00:13.7]} 24... b5 {[%clk
0:01:13.2]} 25. Qe2 {[%clk 0:00:12.2]} 25... f5 {[%clk 0:01:00.8]} 26. cxb5
{[%clk 0:00:08.5]} 26... Nf7 {[%clk 0:01:00.8]} 27. Rac1 {[%clk 0:00:07.2]}
27... Ra7 {[%clk 0:00:59.2]} 28. Bd4 {[%clk 0:00:05.6]} 28... Rb7 {[%clk
0:00:54.3]} 29. b6 {[%clk 0:00:06]} 29... Qd5 {[%clk 0:00:52.3]} 30. Bc4 {[%clk
0:00:05.6]} 30... Qd7 {[%clk 0:00:48.1]} 31. Qh5+ {[%clk 0:00:06.1]} 31... Kg8
{[%clk 0:00:44.4]} 32. Qg6 {[%clk 0:00:06.6]} 32... e5 {[%clk 0:00:38.4]} 33.
Bxe5 {[%clk 0:00:06.1]} 33... Rxb6 {[%clk 0:00:02.8]} 34. Qxg7# {[%clk 0:00:06]}
1-0

[Event "Late-Titled-Tuesday-Blitz-January-16-2024"]
[Site "Chess.com"]
[Date "2024.01.16"]
[Round "1"]
[White "CamillaEffect"]
[Black "jjbolanos"]
[Result "1-0"]
[WhiteElo "2548"]
[BlackElo "2042"]
[TimeControl "180+1"]
[EndTime "14:07:21 PST"]
[Termination "CamillaEffect won by resignation"]

1. e4 {[%clk 0:03:00.1]} 1... c5 {[%clk 0:02:58.9]} 2. Nf3 {[%clk 0:03:00.2]}
2... e6 {[%clk 0:02:58.6]} 3. c3 {[%clk 0:02:59.8]} 3... Nf6 {[%clk 0:02:56.7]}
4. Bd3 {[%clk 0:02:59]} 4... d5 {[%clk 0:02:54.7]} 5. e5 {[%clk 0:02:58.1]} 5...
Nfd7 {[%clk 0:02:54]} 6. Bc2 {[%clk 0:02:58.3]} 6... Nc6 {[%clk 0:02:54.3]} 7.
d4 {[%clk 0:02:58.6]} 7... Be7 {[%clk 0:02:49.3]} 8. h4 {[%clk 0:02:55.3]} 8...
Qb6 {[%clk 0:02:48.3]} 9. a3 {[%clk 0:02:48.4]} 9... h6 {[%clk 0:02:31.9]} 10.
b4 {[%clk 0:02:41.7]} 10... cxd4 {[%clk 0:02:26.8]} 11. cxd4 {[%clk 0:02:40.2]}
11... Qc7 {[%clk 0:02:16.2]} 12. Bb2 {[%clk 0:02:30.5]} 12... Nb6 {[%clk
0:02:15]} 13. Nbd2 {[%clk 0:02:29.7]} 13... Bd7 {[%clk 0:02:05.1]} 14. Rc1
{[%clk 0:02:26.4]} 14... Rc8 {[%clk 0:02:05.1]} 15. Bb1 {[%clk 0:02:14.6]} 15...
Qb8 {[%clk 0:02:02.4]} 16. Rh3 {[%clk 0:02:14.8]} 16... a6 {[%clk 0:01:40.8]}
17. Rg3 {[%clk 0:02:10.3]} 17... Kf8 {[%clk 0:01:37.5]} 18. h5 {[%clk
0:02:05.9]} 18... Na7 {[%clk 0:01:36]} 19. Rxc8+ {[%clk 0:01:58.9]} 19... Qxc8
{[%clk 0:01:36.2]} 20. Nh2 {[%clk 0:01:59.1]} 20... Ba4 {[%clk 0:01:03.3]} 21.
Qg4 {[%clk 0:01:56.8]} 21... Bg5 {[%clk 0:01:03.1]} 22. f4 {[%clk 0:01:55.6]}
22... f5 {[%clk 0:00:54]} 23. exf6 {[%clk 0:01:35.2]} 23... Bxf6 {[%clk
0:00:54]} 24. Nhf3 {[%clk 0:01:33.5]} 24... Nc4 {[%clk 0:00:21.2]} 25. Nxc4
{[%clk 0:01:32]} 25... dxc4 {[%clk 0:00:20.8]} 26. Ne5 {[%clk 0:01:15.2]} 26...
Be8 {[%clk 0:00:20.5]} 27. f5 {[%clk 0:00:36.3]} 27... Nb5 {[%clk 0:00:17.7]}
28. a4 {[%clk 0:00:28.2]} 28... c3 {[%clk 0:00:17.5]} 29. Bc1 {[%clk 0:00:21]}
29... c2 {[%clk 0:00:17.9]} 30. Ba2 {[%clk 0:00:21.3]} 30... Nc3 {[%clk
0:00:13.8]} 31. Bxe6 {[%clk 0:00:19.8]} 31... Qc7 {[%clk 0:00:11]} 32. Qf4
{[%clk 0:00:14.3]} 32... Na2 {[%clk 0:00:07.1]} 33. Ng6+ {[%clk 0:00:13.7]}
33... Bxg6 {[%clk 0:00:06.9]} 34. Qxc7 {[%clk 0:00:13.9]} 34... Nxc1 {[%clk
0:00:03.8]} 35. hxg6 {[%clk 0:00:14]} 35... Nd3+ {[%clk 0:00:03.6]} 36. Rxd3
{[%clk 0:00:14.4]} 36... Bh4+ {[%clk 0:00:03.7]} 37. Ke2 {[%clk 0:00:14.4]} 1-0